[Event "Titled Tuesday Blitz August 08 Early 2023"]
[White "Subelj, Jan"]
[Black "Iljin, Timofey"]
[WhiteFideId "14618583"]
[BlackFideId "14110180"]
[WhiteElo "2603"]
[BlackElo "2459"]
[Result "0-1"]
[Round "5"]
[TimeControl "180+1"]
[Date "2023.08.08"]
[WhiteClock "0:00:12"]
[BlackClock "0:00:11"]
[Board "122"]

1. e4 {[%clk 0:03:00]}  e5 {[%clk 0:02:56]} 2. Nf3 {[%clk 0:02:59]}  Nc6 {[%clk 0:02:56]} 3. a4 {[%clk 0:02:54]}  Nf6 {[%clk 0:02:55]} 4. d3 {[%clk 0:02:54]}  d5 {[%clk 0:02:55]} 5. Nbd2 {[%clk 0:02:51]}  a6 {[%clk 0:02:52]} 6. Be2 {[%clk 0:02:50]}  Bc5 {[%clk 0:02:51]} 7. O-O {[%clk 0:02:49]}  O-O {[%clk 0:02:52]} 8. c3 {[%clk 0:02:50]}  h6 {[%clk 0:02:52]} 9. b4 {[%clk 0:02:49]}  Bb6 {[%clk 0:02:50]} 10. Bb2 {[%clk 0:02:48]}  Be6 {[%clk 0:02:47]} 11. h3 {[%clk 0:02:46]}  d4 {[%clk 0:02:45]} 12. cxd4 {[%clk 0:02:39]}  Bxd4 {[%clk 0:02:31]} 13. Bxd4 {[%clk 0:02:31]}  Nxd4 {[%clk 0:02:30]} 14. Nxe5 {[%clk 0:02:24]}  Nxe2+ {[%clk 0:02:29]} 15. Qxe2 {[%clk 0:02:24]}  Qd4 {[%clk 0:02:29]} 16. Nec4 {[%clk 0:02:16]}  b5 {[%clk 0:02:12]} 17. Qe3 {[%clk 0:02:04]}  Qc3 {[%clk 0:02:05]} 18. Rfc1 {[%clk 0:01:59]}  Qxb4 {[%clk 0:02:05]} 19. Ne5 {[%clk 0:01:48]}  bxa4 {[%clk 0:01:59]} 20. Nc6 {[%clk 0:01:47]}  Qb5 {[%clk 0:01:47]} 21. d4 {[%clk 0:01:45]}  Rfe8 {[%clk 0:01:32]} 22. Qa3 {[%clk 0:01:21]}  Bb3 {[%clk 0:01:17]} 23. e5 {[%clk 0:00:51]}  Nh5 {[%clk 0:00:58]} 24. Rab1 {[%clk 0:00:46]}  Nf4 {[%clk 0:00:52]} 25. Nxb3 {[%clk 0:00:32]}  Ne2+ {[%clk 0:00:51]} 26. Kh2 {[%clk 0:00:29]}  Nxc1 {[%clk 0:00:51]} 27. Qxc1 {[%clk 0:00:21]}  axb3 {[%clk 0:00:49]} 28. Qc3 {[%clk 0:00:22]}  a5 {[%clk 0:00:22]} 29. Rxb3 {[%clk 0:00:21]}  Qd5 {[%clk 0:00:23]} 30. Rb7 {[%clk 0:00:21]}  a4 {[%clk 0:00:19]} 31. Rxc7 {[%clk 0:00:20]}  a3 {[%clk 0:00:19]} 32. Nb4 {[%clk 0:00:13]}  Qa5 {[%clk 0:00:17]} 33. Qc4 {[%clk 0:00:12]}  Rf8 {[%clk 0:00:14]} 34. e6 {[%clk 0:00:12]}  fxe6 {[%clk 0:00:10]} 35. Qxe6+ {[%clk 0:00:12]}  Kh8 {[%clk 0:00:10]} 36. Qe7 {[%clk 0:00:08]}  Qg5 {[%clk 0:00:06]} 37. Qxg5 {[%clk 0:00:05]}  hxg5 {[%clk 0:00:06]} 38. Rc2 {[%clk 0:00:05]}  Rfb8 {[%clk 0:00:06]} 39. Nd5 {[%clk 0:00:04]}  a2 {[%clk 0:00:06]} 40. Ne7 {[%clk 0:00:04]}  a1=Q {[%clk 0:00:06]} 41. Rc5 {[%clk 0:00:04]}  Qxd4 {[%clk 0:00:05]} 42. Rxg5 {[%clk 0:00:03]}  Qf4+ {[%clk 0:00:05]} 43. Rg3 {[%clk 0:00:04]}  Qxg3+ {[%clk 0:00:05]} 44. fxg3 {[%clk 0:00:03]}  Kh7 {[%clk 0:00:05]} 45. Nf5 {[%clk 0:00:04]}  Rb2 {[%clk 0:00:06]} 46. Nh4 {[%clk 0:00:05]}  Raa2 {[%clk 0:00:06]} 47. g4 {[%clk 0:00:05]}  g5 {[%clk 0:00:07]} 48. Nf3 {[%clk 0:00:05]}  Rxg2+ {[%clk 0:00:07]} 49. Kh1 {[%clk 0:00:06]}  Rgb2 {[%clk 0:00:07]} 50. Nxg5+ {[%clk 0:00:06]}  Kg6 {[%clk 0:00:07]} 51. Nf3 {[%clk 0:00:06]}  Rb1+ {[%clk 0:00:08]} 52. Ng1 {[%clk 0:00:07]}  Raa1 {[%clk 0:00:09]} 53. Kg2 {[%clk 0:00:08]}  Rxg1+ {[%clk 0:00:10]} 54. Kf3 {[%clk 0:00:09]}  Raf1+ {[%clk 0:00:09]} 55. Ke4 {[%clk 0:00:09]}  Re1+ {[%clk 0:00:10]} 56. Kf4 {[%clk 0:00:10]}  Rgf1+ {[%clk 0:00:10]} 57. Kg3 {[%clk 0:00:11]}  Re3+ {[%clk 0:00:11]} 58. Kh4 {[%clk 0:00:11]}  Rff3 {[%clk 0:00:11]} 59. g5 {[%clk 0:00:12]}  Rf4# {[%clk 0:00:11]} 0-1


[Site "https://www.chess.com"]

[Event "Titled Tuesday Blitz August 08 Early 2023"]
[White "Kirillov, Dmitry"]
[Black "Vlassov, Nikolai"]
[WhiteFideId "34180572"]
[BlackFideId "4103360"]
[WhiteElo "2442"]
[BlackElo "2588"]
[Result "1-0"]
[Round "5"]
[TimeControl "180+1"]
[Date "2023.08.08"]
[WhiteClock "0:00:06"]
[BlackClock "0:00:00"]
[Board "128"]

1. d4 {[%clk 0:03:00]}  Nf6 {[%clk 0:02:59]} 2. c4 {[%clk 0:02:48]}  Nc6 {[%clk 0:02:59]} 3. Nf3 {[%clk 0:02:45]}  e6 {[%clk 0:02:59]} 4. Nc3 {[%clk 0:02:44]}  Bb4 {[%clk 0:02:58]} 5. Qc2 {[%clk 0:02:41]}  d6 {[%clk 0:02:57]} 6. e3 {[%clk 0:02:41]}  e5 {[%clk 0:02:56]} 7. Bd2 {[%clk 0:02:34]}  Bg4 {[%clk 0:02:55]} 8. d5 {[%clk 0:02:28]}  Bxc3 {[%clk 0:02:55]} 9. Bxc3 {[%clk 0:02:26]}  Ne7 {[%clk 0:02:55]} 10. Nd2 {[%clk 0:02:25]}  O-O {[%clk 0:02:54]} 11. Bd3 {[%clk 0:02:23]}  c6 {[%clk 0:02:53]} 12. e4 {[%clk 0:02:22]}  cxd5 {[%clk 0:02:52]} 13. cxd5 {[%clk 0:02:23]}  Rc8 {[%clk 0:02:51]} 14. O-O {[%clk 0:02:23]}  Ng6 {[%clk 0:02:47]} 15. f3 {[%clk 0:02:19]}  Bd7 {[%clk 0:02:47]} 16. g3 {[%clk 0:02:19]}  Qb6+ {[%clk 0:02:40]} 17. Kg2 {[%clk 0:02:19]}  Bb5 {[%clk 0:02:40]} 18. Rac1 {[%clk 0:02:14]}  Nd7 {[%clk 0:02:38]} 19. Nb3 {[%clk 0:02:10]}  Qa6 {[%clk 0:02:27]} 20. Bxb5 {[%clk 0:02:08]}  Qxb5 {[%clk 0:02:27]} 21. Rfd1 {[%clk 0:02:08]}  b6 {[%clk 0:02:15]} 22. Qd3 {[%clk 0:02:06]}  Qa4 {[%clk 0:02:01]} 23. Qb1 {[%clk 0:02:02]}  Ne7 {[%clk 0:01:51]} 24. g4 {[%clk 0:01:35]}  g6 {[%clk 0:01:48]} 25. Bd2 {[%clk 0:01:32]}  f5 {[%clk 0:01:38]} 26. gxf5 {[%clk 0:01:04]}  gxf5 {[%clk 0:01:38]} 27. Bh6 {[%clk 0:01:05]}  Rf6 {[%clk 0:01:14]} 28. Rxc8+ {[%clk 0:00:51]}  Nxc8 {[%clk 0:01:14]} 29. Be3 {[%clk 0:00:52]}  Rg6+ {[%clk 0:01:06]} 30. Kh1 {[%clk 0:00:51]}  fxe4 {[%clk 0:01:05]} 31. Qxe4 {[%clk 0:00:43]}  Qxe4 {[%clk 0:00:58]} 32. fxe4 {[%clk 0:00:44]}  Rg4 {[%clk 0:00:56]} 33. Rg1 {[%clk 0:00:42]}  Nf6 {[%clk 0:00:50]} 34. Nd2 {[%clk 0:00:39]}  Ne7 {[%clk 0:00:45]} 35. Bg5 {[%clk 0:00:37]}  Kf7 {[%clk 0:00:35]} 36. Bxf6 {[%clk 0:00:23]}  Rxg1+ {[%clk 0:00:35]} 37. Kxg1 {[%clk 0:00:24]}  Kxf6 {[%clk 0:00:35]} 38. Kf2 {[%clk 0:00:25]}  Ng6 {[%clk 0:00:27]} 39. a4 {[%clk 0:00:23]}  Nf4 {[%clk 0:00:26]} 40. Ke3 {[%clk 0:00:21]}  Kg5 {[%clk 0:00:22]} 41. Nc4 {[%clk 0:00:21]}  Kg4 {[%clk 0:00:14]} 42. Nxd6 {[%clk 0:00:21]}  Kh3 {[%clk 0:00:07]} 43. Nf7 {[%clk 0:00:22]}  Ng6 {[%clk 0:00:04]} 44. d6 {[%clk 0:00:21]}  Nf8 {[%clk 0:00:04]} 45. Nxe5 {[%clk 0:00:20]}  Kxh2 {[%clk 0:00:04]} 46. d7 {[%clk 0:00:19]}  Ne6 {[%clk 0:00:05]} 47. Nf7 {[%clk 0:00:13]}  h5 {[%clk 0:00:04]} 48. d8=Q {[%clk 0:00:13]}  Nxd8 {[%clk 0:00:03]} 49. Nxd8 {[%clk 0:00:14]}  Kg3 {[%clk 0:00:04]} 50. Nf7 {[%clk 0:00:12]}  h4 {[%clk 0:00:04]} 51. Ng5 {[%clk 0:00:12]}  Kg4 {[%clk 0:00:04]} 52. Nf3 {[%clk 0:00:13]}  h3 {[%clk 0:00:04]} 53. e5 {[%clk 0:00:10]}  Kf5 {[%clk 0:00:04]} 54. Kd4 {[%clk 0:00:08]}  Kf4 {[%clk 0:00:03]} 55. e6 {[%clk 0:00:05]}  Kxf3 {[%clk 0:00:04]} 56. e7 {[%clk 0:00:06]}  h2 {[%clk 0:00:04]} 57. e8=Q {[%clk 0:00:06]}  Kg2 {[%clk 0:00:02]} 58. Qa8+ {[%clk 0:00:06]}  Kg1 {[%clk 0:00:00]} 59. Kc4 {[%clk 0:00:06]} 1-0


[Site "https://www.chess.com"]

[Event "Titled Tuesday Blitz August 08 Early 2023"]
[White "Kukreja Sankalp"]
[Black "Toropov, Pavel"]
[WhiteFideId "45027676"]
[BlackFideId "24129178"]
[WhiteElo "2426"]
[BlackElo "2578"]
[Result "0-1"]
[Round "5"]
[TimeControl "180+1"]
[Date "2023.08.08"]
[WhiteClock "0:00:02"]
[BlackClock "0:00:08"]
[Board "130"]

1. e4 {[%clk 0:02:58]}  e6 {[%clk 0:02:59]} 2. d4 {[%clk 0:02:58]}  d5 {[%clk 0:03:00]} 3. Nc3 {[%clk 0:02:59]}  dxe4 {[%clk 0:03:00]} 4. Nxe4 {[%clk 0:02:59]}  Nd7 {[%clk 0:02:59]} 5. Nf3 {[%clk 0:02:59]}  Ngf6 {[%clk 0:03:00]} 6. Bd3 {[%clk 0:03:00]}  Nxe4 {[%clk 0:02:59]} 7. Bxe4 {[%clk 0:03:01]}  Nf6 {[%clk 0:02:59]} 8. Bg5 {[%clk 0:03:01]}  Be7 {[%clk 0:02:59]} 9. Bxf6 {[%clk 0:03:01]}  Bxf6 {[%clk 0:02:59]} 10. O-O {[%clk 0:03:02]}  O-O {[%clk 0:02:59]} 11. Qe2 {[%clk 0:03:01]}  c5 {[%clk 0:02:57]} 12. c3 {[%clk 0:02:50]}  Qb6 {[%clk 0:02:45]} 13. Rad1 {[%clk 0:02:50]}  cxd4 {[%clk 0:02:32]} 14. cxd4 {[%clk 0:02:51]}  Bd7 {[%clk 0:02:30]} 15. Ne5 {[%clk 0:02:46]}  Bb5 {[%clk 0:02:29]} 16. Bd3 {[%clk 0:02:04]}  Bxd3 {[%clk 0:02:06]} 17. Rxd3 {[%clk 0:02:05]}  Rfd8 {[%clk 0:02:04]} 18. Rfd1 {[%clk 0:01:55]}  Rd5 {[%clk 0:02:01]} 19. Nc4 {[%clk 0:01:51]}  Qa6 {[%clk 0:01:55]} 20. b3 {[%clk 0:01:42]}  Rad8 {[%clk 0:01:53]} 21. Qe4 {[%clk 0:01:37]}  Qxa2 {[%clk 0:01:36]} 22. Ne3 {[%clk 0:01:37]}  R5d7 {[%clk 0:01:04]} 23. d5 {[%clk 0:01:37]}  Qa6 {[%clk 0:00:47]} 24. R3d2 {[%clk 0:01:13]}  Bg5 {[%clk 0:00:37]} 25. Rd4 {[%clk 0:00:48]}  Bxe3 {[%clk 0:00:35]} 26. fxe3 {[%clk 0:00:46]}  exd5 {[%clk 0:00:11]} 27. Rxd5 {[%clk 0:00:46]}  Rxd5 {[%clk 0:00:11]} 28. Rxd5 {[%clk 0:00:46]}  Qa1+ {[%clk 0:00:08]} 29. Kf2 {[%clk 0:00:46]}  Qf6+ {[%clk 0:00:08]} 30. Kg3 {[%clk 0:00:33]}  Rc8 {[%clk 0:00:06]} 31. Rf5 {[%clk 0:00:18]}  Qg6+ {[%clk 0:00:06]} 32. Kf3 {[%clk 0:00:18]}  h6 {[%clk 0:00:06]} 33. Re5 {[%clk 0:00:17]}  Qxe4+ {[%clk 0:00:06]} 34. Rxe4 {[%clk 0:00:17]}  Kf8 {[%clk 0:00:07]} 35. Rd4 {[%clk 0:00:15]}  Rc7 {[%clk 0:00:07]} 36. Ke4 {[%clk 0:00:15]}  Ke7 {[%clk 0:00:08]} 37. Rd2 {[%clk 0:00:13]}  Rd7 {[%clk 0:00:08]} 38. Rc2 {[%clk 0:00:13]}  Kd8 {[%clk 0:00:08]} 39. Kf3 {[%clk 0:00:13]}  Rd6 {[%clk 0:00:08]} 40. Ke4 {[%clk 0:00:13]}  Kd7 {[%clk 0:00:09]} 41. g3 {[%clk 0:00:13]}  Rc6 {[%clk 0:00:09]} 42. Rd2+ {[%clk 0:00:13]}  Kc7 {[%clk 0:00:10]} 43. Rf2 {[%clk 0:00:13]}  f6 {[%clk 0:00:10]} 44. Kf5 {[%clk 0:00:13]}  Rc3 {[%clk 0:00:09]} 45. Kg6 {[%clk 0:00:13]}  Rxb3 {[%clk 0:00:10]} 46. Kxg7 {[%clk 0:00:13]}  a5 {[%clk 0:00:10]} 47. Kxf6 {[%clk 0:00:12]}  Rxe3 {[%clk 0:00:10]} 48. Kg6 {[%clk 0:00:09]}  Re6+ {[%clk 0:00:09]} 49. Kf5 {[%clk 0:00:08]}  Ra6 {[%clk 0:00:08]} 50. g4 {[%clk 0:00:08]}  a4 {[%clk 0:00:08]} 51. h4 {[%clk 0:00:09]}  a3 {[%clk 0:00:09]} 52. Ra2 {[%clk 0:00:09]}  b5 {[%clk 0:00:08]} 53. g5 {[%clk 0:00:09]}  hxg5 {[%clk 0:00:08]} 54. hxg5 {[%clk 0:00:10]}  b4 {[%clk 0:00:08]} 55. g6 {[%clk 0:00:11]}  Kb6 {[%clk 0:00:08]} 56. g7 {[%clk 0:00:10]}  Ra8 {[%clk 0:00:08]} 57. Kg6 {[%clk 0:00:10]}  Kb5 {[%clk 0:00:09]} 58. Kh7 {[%clk 0:00:09]}  Ra7 {[%clk 0:00:08]} 59. Kh8 {[%clk 0:00:03]}  Rxg7 {[%clk 0:00:08]} 60. Kxg7 {[%clk 0:00:04]}  Ka4 {[%clk 0:00:09]} 61. Kf6 {[%clk 0:00:04]}  b3 {[%clk 0:00:09]} 62. Rh2 {[%clk 0:00:04]}  b2 {[%clk 0:00:09]} 63. Rh4+ {[%clk 0:00:04]}  Kb3 {[%clk 0:00:09]} 64. Rh3+ {[%clk 0:00:04]}  Kb4 {[%clk 0:00:10]} 65. Rh4+ {[%clk 0:00:05]}  Kc5 {[%clk 0:00:10]} 66. Rh5+ {[%clk 0:00:05]}  Kd4 {[%clk 0:00:10]} 67. Rh4+ {[%clk 0:00:05]}  Kd5 {[%clk 0:00:11]} 68. Rh5+ {[%clk 0:00:05]}  Kd6 {[%clk 0:00:11]} 69. Rb5 {[%clk 0:00:04]}  a2 {[%clk 0:00:08]} 70. Rb6+ {[%clk 0:00:02]}  Kc5 {[%clk 0:00:08]} 0-1


[Site "https://www.chess.com"]

[Event "Titled Tuesday Blitz August 08 Early 2023"]
[White "Manukyan, Sargis A."]
[Black "Llanos, Guillermo"]
[WhiteFideId "13303970"]
[BlackFideId "100358"]
[WhiteElo "2568"]
[BlackElo "2408"]
[Result "1-0"]
[Round "5"]
[TimeControl "180+1"]
[Date "2023.08.08"]
[WhiteClock "0:00:05"]
[BlackClock "0:00:12"]
[Board "136"]

1. d4 {[%clk 0:03:00]}  Nf6 {[%clk 0:02:59]} 2. c4 {[%clk 0:03:01]}  b6 {[%clk 0:03:00]} 3. Nc3 {[%clk 0:03:01]}  Bb7 {[%clk 0:02:59]} 4. Nf3 {[%clk 0:02:58]}  g6 {[%clk 0:02:58]} 5. g3 {[%clk 0:02:58]}  Bg7 {[%clk 0:02:56]} 6. Bg2 {[%clk 0:02:59]}  O-O {[%clk 0:02:56]} 7. O-O {[%clk 0:03:00]}  Ne4 {[%clk 0:02:56]} 8. Nxe4 {[%clk 0:02:56]}  Bxe4 {[%clk 0:02:55]} 9. b3 {[%clk 0:02:56]}  c5 {[%clk 0:02:55]} 10. Bb2 {[%clk 0:02:56]}  Nc6 {[%clk 0:02:53]} 11. e3 {[%clk 0:02:55]}  d5 {[%clk 0:02:48]} 12. Rc1 {[%clk 0:02:50]}  Rc8 {[%clk 0:02:32]} 13. Ba1 {[%clk 0:02:36]}  dxc4 {[%clk 0:02:26]} 14. Rxc4 {[%clk 0:02:35]}  Bd5 {[%clk 0:02:23]} 15. Rc1 {[%clk 0:02:33]}  cxd4 {[%clk 0:02:21]} 16. Nxd4 {[%clk 0:02:31]}  Bxg2 {[%clk 0:02:21]} 17. Kxg2 {[%clk 0:02:30]}  Nxd4 {[%clk 0:02:20]} 18. Rxc8 {[%clk 0:02:24]}  Qxc8 {[%clk 0:02:20]} 19. exd4 {[%clk 0:02:20]}  Rd8 {[%clk 0:02:14]} 20. Qd2 {[%clk 0:02:05]}  Qb7+ {[%clk 0:02:08]} 21. f3 {[%clk 0:02:05]}  Qd5 {[%clk 0:02:08]} 22. Qe2 {[%clk 0:01:57]}  e6 {[%clk 0:02:05]} 23. Rd1 {[%clk 0:01:53]}  h5 {[%clk 0:02:01]} 24. Qe4 {[%clk 0:01:52]}  Bf6 {[%clk 0:01:54]} 25. Qxd5 {[%clk 0:01:52]}  Rxd5 {[%clk 0:01:54]} 26. f4 {[%clk 0:01:52]}  Bg7 {[%clk 0:01:46]} 27. Kf3 {[%clk 0:01:52]}  Kf8 {[%clk 0:01:45]} 28. a4 {[%clk 0:01:48]}  Ke8 {[%clk 0:01:44]} 29. Ke4 {[%clk 0:01:47]}  Kd7 {[%clk 0:01:43]} 30. Rc1 {[%clk 0:01:45]}  Bf8 {[%clk 0:01:43]} 31. Bb2 {[%clk 0:01:43]}  Bd6 {[%clk 0:01:41]} 32. h4 {[%clk 0:01:38]}  b5 {[%clk 0:01:37]} 33. Bc3 {[%clk 0:01:33]}  a6 {[%clk 0:01:34]} 34. Ra1 {[%clk 0:01:31]}  Bc7 {[%clk 0:01:27]} 35. Kd3 {[%clk 0:01:27]}  Bb6 {[%clk 0:01:25]} 36. axb5 {[%clk 0:01:27]}  axb5 {[%clk 0:01:24]} 37. Ra8 {[%clk 0:01:25]}  Bd8 {[%clk 0:01:23]} 38. Ra7+ {[%clk 0:01:24]}  Ke8 {[%clk 0:01:22]} 39. Ra8 {[%clk 0:01:15]}  Ke7 {[%clk 0:01:17]} 40. Bb4+ {[%clk 0:01:13]}  Kf6 {[%clk 0:01:16]} 41. Bc5 {[%clk 0:01:03]}  Kf5 {[%clk 0:01:13]} 42. Ra7 {[%clk 0:00:55]}  f6 {[%clk 0:01:12]} 43. Rb7 {[%clk 0:00:56]}  Kg4 {[%clk 0:01:11]} 44. Rxb5 {[%clk 0:00:56]}  Kxg3 {[%clk 0:01:11]} 45. Rb7 {[%clk 0:00:57]}  Kxf4 {[%clk 0:01:09]} 46. Rg7 {[%clk 0:00:56]}  Kf5 {[%clk 0:01:09]} 47. b4 {[%clk 0:00:56]}  g5 {[%clk 0:01:06]} 48. b5 {[%clk 0:00:51]}  gxh4 {[%clk 0:01:04]} 49. Ke3 {[%clk 0:00:42]}  e5 {[%clk 0:01:00]} 50. b6 {[%clk 0:00:36]}  exd4+ {[%clk 0:00:59]} 51. Bxd4 {[%clk 0:00:36]}  Rb5 {[%clk 0:00:59]} 52. b7 {[%clk 0:00:36]}  h3 {[%clk 0:00:56]} 53. Kf3 {[%clk 0:00:29]}  Rb3+ {[%clk 0:00:54]} 54. Kf2 {[%clk 0:00:27]}  Ke4 {[%clk 0:00:40]} 55. Rd7 {[%clk 0:00:17]}  Ba5 {[%clk 0:00:33]} 56. Ba7 {[%clk 0:00:17]}  Bb6+ {[%clk 0:00:33]} 57. Bxb6 {[%clk 0:00:14]}  Rxb6 {[%clk 0:00:32]} 58. Kg3 {[%clk 0:00:14]}  Rb3+ {[%clk 0:00:32]} 59. Kh2 {[%clk 0:00:14]}  Kf4 {[%clk 0:00:31]} 60. Rd4+ {[%clk 0:00:14]}  Kg5 {[%clk 0:00:31]} 61. Rd7 {[%clk 0:00:13]}  f5 {[%clk 0:00:31]} 62. Rg7+ {[%clk 0:00:13]}  Kh4 {[%clk 0:00:30]} 63. Rc7 {[%clk 0:00:12]}  Rb2+ {[%clk 0:00:30]} 64. Kg1 {[%clk 0:00:11]}  Kg4 {[%clk 0:00:30]} 65. Rc4+ {[%clk 0:00:11]}  f4 {[%clk 0:00:30]} 66. Rc7 {[%clk 0:00:11]}  Kg3 {[%clk 0:00:29]} 67. Rg7+ {[%clk 0:00:11]}  Kf3 {[%clk 0:00:29]} 68. Rc7 {[%clk 0:00:11]}  Rb1+ {[%clk 0:00:29]} 69. Kh2 {[%clk 0:00:11]}  Kf2 {[%clk 0:00:29]} 70. Rc2+ {[%clk 0:00:11]}  Ke3 {[%clk 0:00:29]} 71. Rc3+ {[%clk 0:00:10]}  Ke4 {[%clk 0:00:28]} 72. Rc4+ {[%clk 0:00:10]}  Ke3 {[%clk 0:00:29]} 73. Rc3+ {[%clk 0:00:10]}  Kd4 {[%clk 0:00:29]} 74. Rc7 {[%clk 0:00:09]}  Rb3 {[%clk 0:00:29]} 75. Rd7+ {[%clk 0:00:08]}  Ke4 {[%clk 0:00:29]} 76. Re7+ {[%clk 0:00:08]}  Kf3 {[%clk 0:00:27]} 77. Rc7 {[%clk 0:00:08]}  h4 {[%clk 0:00:27]} 78. Rc3+ {[%clk 0:00:09]}  Rxc3 {[%clk 0:00:27]} 79. b8=Q {[%clk 0:00:09]}  Rc2+ {[%clk 0:00:25]} 80. Kxh3 {[%clk 0:00:09]}  Re2 {[%clk 0:00:25]} 81. Qb7+ {[%clk 0:00:09]}  Kf2 {[%clk 0:00:24]} 82. Kxh4 {[%clk 0:00:08]}  Re3 {[%clk 0:00:24]} 83. Kg4 {[%clk 0:00:08]}  f3 {[%clk 0:00:24]} 84. Qb6 {[%clk 0:00:07]}  Ke2 {[%clk 0:00:24]} 85. Qb2+ {[%clk 0:00:07]}  Ke1 {[%clk 0:00:23]} 86. Qc1+ {[%clk 0:00:06]}  Ke2 {[%clk 0:00:23]} 87. Qc2+ {[%clk 0:00:06]}  Ke1 {[%clk 0:00:23]} 88. Qb1+ {[%clk 0:00:04]}  Ke2 {[%clk 0:00:23]} 89. Qa2+ {[%clk 0:00:05]}  Ke1 {[%clk 0:00:23]} 90. Qa1+ {[%clk 0:00:05]}  Ke2 {[%clk 0:00:23]} 91. Qa6+ {[%clk 0:00:05]}  Ke1 {[%clk 0:00:23]} 92. Qb6 {[%clk 0:00:05]}  Ke2 {[%clk 0:00:23]} 93. Kf4 {[%clk 0:00:05]}  Rd3 {[%clk 0:00:22]} 94. Qb2+ {[%clk 0:00:05]}  Rd2 {[%clk 0:00:20]} 95. Qe5+ {[%clk 0:00:05]}  Kf1 {[%clk 0:00:20]} 96. Kxf3 {[%clk 0:00:05]}  Rf2+ {[%clk 0:00:20]} 97. Kg3 {[%clk 0:00:05]}  Rg2+ {[%clk 0:00:20]} 98. Kh3 {[%clk 0:00:06]}  Rf2 {[%clk 0:00:20]} 99. Qa1+ {[%clk 0:00:06]}  Ke2 {[%clk 0:00:20]} 100. Kg3 {[%clk 0:00:06]}  Rf3+ {[%clk 0:00:20]} 101. Kg4 {[%clk 0:00:06]}  Rd3 {[%clk 0:00:20]} 102. Qe5+ {[%clk 0:00:05]}  Re3 {[%clk 0:00:19]} 103. Qb5+ {[%clk 0:00:05]}  Kd2 {[%clk 0:00:19]} 104. Kf4 {[%clk 0:00:05]}  Rc3 {[%clk 0:00:18]} 105. Ke4 {[%clk 0:00:05]}  Rh3 {[%clk 0:00:18]} 106. Qg5+ {[%clk 0:00:04]}  Ke1 {[%clk 0:00:15]} 107. Qg1+ {[%clk 0:00:04]}  Ke2 {[%clk 0:00:12]} 108. Qg2+ {[%clk 0:00:05]} 1-0


[Site "https://www.chess.com"]

[Event "Titled Tuesday Blitz August 08 Early 2023"]
[White "Mogirzan, Matei-Valeriu"]
[Black "Castella Garcia, Fausto"]
[WhiteFideId "1257455"]
[BlackFideId "3501922"]
[WhiteElo "2561"]
[BlackElo "2396"]
[Result "1-0"]
[Round "5"]
[TimeControl "180+1"]
[Date "2023.08.08"]
[WhiteClock "0:00:46"]
[BlackClock "0:00:16"]
[Board "139"]

1. e4 {[%clk 0:03:00]}  c5 {[%clk 0:03:00]} 2. Nf3 {[%clk 0:03:00]}  d6 {[%clk 0:03:00]} 3. d4 {[%clk 0:03:01]}  cxd4 {[%clk 0:03:01]} 4. Nxd4 {[%clk 0:03:02]}  Nf6 {[%clk 0:03:01]} 5. Nc3 {[%clk 0:03:03]}  g6 {[%clk 0:03:01]} 6. h4 {[%clk 0:03:01]}  Bg7 {[%clk 0:02:59]} 7. h5 {[%clk 0:03:01]}  Nxh5 {[%clk 0:02:58]} 8. g4 {[%clk 0:03:00]}  Nf6 {[%clk 0:02:55]} 9. g5 {[%clk 0:02:57]}  Ng4 {[%clk 0:02:44]} 10. Bb5+ {[%clk 0:02:55]}  Bd7 {[%clk 0:02:30]} 11. Ne6 {[%clk 0:02:42]}  fxe6 {[%clk 0:02:23]} 12. Bxd7+ {[%clk 0:02:42]}  Nxd7 {[%clk 0:01:59]} 13. Qxg4 {[%clk 0:02:43]}  Ne5 {[%clk 0:01:49]} 14. Qe2 {[%clk 0:02:42]}  Rc8 {[%clk 0:01:42]} 15. f4 {[%clk 0:02:32]}  Nc4 {[%clk 0:01:35]} 16. f5 {[%clk 0:02:32]}  Nxb2 {[%clk 0:01:19]} 17. Bxb2 {[%clk 0:02:23]}  Qa5 {[%clk 0:01:12]} 18. f6 {[%clk 0:02:18]}  exf6 {[%clk 0:01:12]} 19. Qb5+ {[%clk 0:02:17]}  Qxb5 {[%clk 0:01:12]} 20. Nxb5 {[%clk 0:02:18]}  Rxc2 {[%clk 0:01:12]} 21. Nxd6+ {[%clk 0:02:03]}  Ke7 {[%clk 0:01:03]} 22. Ba3 {[%clk 0:01:57]}  Kd7 {[%clk 0:00:46]} 23. O-O {[%clk 0:01:51]}  f5 {[%clk 0:00:43]} 24. Rad1 {[%clk 0:01:45]}  Kc7 {[%clk 0:00:37]} 25. exf5 {[%clk 0:01:39]}  exf5 {[%clk 0:00:37]} 26. Rfe1 {[%clk 0:01:36]}  Bf8 {[%clk 0:00:28]} 27. Re8 {[%clk 0:01:17]}  Rxa2 {[%clk 0:00:20]} 28. Nb5+ {[%clk 0:01:04]}  Kb6 {[%clk 0:00:21]} 29. Bxf8 {[%clk 0:01:03]}  Kxb5 {[%clk 0:00:21]} 30. Rb1+ {[%clk 0:01:00]}  Kc6 {[%clk 0:00:21]} 31. Rc1+ {[%clk 0:00:56]}  Kd7 {[%clk 0:00:21]} 32. Re7+ {[%clk 0:00:53]}  Kd8 {[%clk 0:00:20]} 33. Rd1+ {[%clk 0:00:45]}  Kc8 {[%clk 0:00:18]} 34. Re8+ {[%clk 0:00:45]}  Kc7 {[%clk 0:00:19]} 35. Bd6+ {[%clk 0:00:46]}  Kc6 {[%clk 0:00:16]} 36. Rxh8 {[%clk 0:00:46]} 1-0


[Site "https://www.chess.com"]